[Event "Championnat du monde jeunes U10"]
[Date "2024.11.19"]
[White "Meitzner, Jonathan Franz"]
[Black "Aguike, Toshiya"]
[WhiteElo "1876"]
[BlackElo "1716"]
[Round "5.22"]
[Result "1-0"]
[TimeControl "5400+30"]

1. d4 {[%clk 1:30:52]} 1... Nf6 {[%clk 1:30:50]} 2. Nf3 {[%clk 1:31:15]} 2... g6
{[%clk 1:31:10]} 3. Bf4 {[%clk 1:31:18]} 3... Bg7 {[%clk 1:31:28]} 4. e3 {[%clk
1:31:36]} 4... d5 {[%clk 1:31:47]} 5. Be2 {[%clk 1:31:32]} 5... O-O {[%clk
1:31:33]} 6. h3 {[%clk 1:31:57]} 6... Nbd7 {[%clk 1:31:52]} 7. O-O {[%clk
1:32:05]} 7... Re8 {[%clk 1:31:37]} 8. Bh2 {[%clk 1:31:48]} 8... c5 {[%clk
1:31:14]} 9. c3 {[%clk 1:31:49]} 9... e6 {[%clk 1:28:36]} 10. Nbd2 {[%clk
1:31:14]} 10... b6 {[%clk 1:19:50]} 11. Re1 {[%clk 1:29:45]} 11... Bb7 {[%clk
1:17:21]} 12. Bd6 {[%clk 1:27:16]} 12... Rc8 {[%clk 1:09:42]} 13. Qb3 {[%clk
1:23:42]} 13... Bf8 {[%clk 1:03:32]} 14. Bxf8 {[%clk 1:13:13]} 14... Rxf8 {[%clk
1:03:28]} 15. a4 {[%clk 1:03:09]} 15... Re8 {[%clk 0:53:13]} 16. Ne5 {[%clk
0:58:42]} 16... Nxe5 {[%clk 0:51:15]} 17. dxe5 {[%clk 0:59:04]} 17... Nd7 {[%clk
0:51:38]} 18. f4 {[%clk 0:56:34]} 18... f6 {[%clk 0:51:31]} 19. exf6 {[%clk
0:54:28]} 19... Nxf6 {[%clk 0:51:56]} 20. Bf3 {[%clk 0:54:32]} 20... c4 {[%clk
0:51:37]} 21. Qc2 {[%clk 0:54:41]} 21... e5 {[%clk 0:46:05]} 22. Rad1 {[%clk
0:48:58]} 22... Qc7 {[%clk 0:38:38]} 23. g3 {[%clk 0:39:46]} 23... Re7 {[%clk
0:27:34]} 24. Bg2 {[%clk 0:32:43]} 24... Rce8 {[%clk 0:15:40]} 25. Nf3 {[%clk
0:22:11]} 25... exf4 {[%clk 0:13:33]} 26. exf4 {[%clk 0:21:53]} 26... Qc5+
{[%clk 0:13:53]} 27. Kh2 {[%clk 0:21:15]} 27... Rxe1 {[%clk 0:13:22]} 28. Rxe1
{[%clk 0:21:37]} 28... Rxe1 {[%clk 0:13:44]} 29. Nxe1 {[%clk 0:21:49]} 29... Bc6
{[%clk 0:13:26]} 30. Nf3 {[%clk 0:18:48]} 30... Qa5 {[%clk 0:11:36]} 31. Qe2
{[%clk 0:18:22]} 31... Ne4 {[%clk 0:09:53]} 32. Ne5 {[%clk 0:09:50]} 32... Qxa4
{[%clk 0:06:02]} 33. Bxe4 {[%clk 0:09:16]} 33... dxe4 {[%clk 0:06:07]} 34. Qxc4+
{[%clk 0:09:18]} 34... Qxc4 {[%clk 0:06:27]} 35. Nxc4 {[%clk 0:09:41]} 35... b5
{[%clk 0:04:50]} 36. Ne5 {[%clk 0:09:26]} 36... Bd5 {[%clk 0:04:38]} 37. Kg1
{[%clk 0:09:23]} 37... Kg7 {[%clk 0:04:16]} 38. Kf2 {[%clk 0:09:22]} 38... h6
{[%clk 0:04:32]} 39. Ke3 {[%clk 0:08:03]} 39... g5 {[%clk 0:04:34]} 40. Ng4
{[%clk 0:05:47]} 40... h5 {[%clk 0:01:01]} 41. Nf2 {[%clk 0:03:03]} 41... Kg6
{[%clk 0:00:57]} 42. fxg5 {[%clk 0:02:23]} 42... Kxg5 {[%clk 0:01:12]} 43. Nxe4+
{[%clk 0:02:49]} 43... Kg6 {[%clk 0:01:34]} 44. b4 {[%clk 0:02:21]} 44... a6
{[%clk 0:00:47]} 45. Nc5 {[%clk 0:02:43]} 45... Bg2 {[%clk 0:01:10]} 46. h4
{[%clk 0:02:53]} 46... Kf5 {[%clk 0:01:27]} 47. Nxa6 {[%clk 0:02:44]} 47... Kg4
{[%clk 0:01:50]} 48. Kf2 {[%clk 0:03:05]} 48... Bh1 {[%clk 0:02:06]} 49. Nc7
{[%clk 0:03:20]} 49... Bc6 {[%clk 0:02:23]} 50. Ne6 {[%clk 0:03:13]} 50... Be8
{[%clk 0:02:03]} 51. Nf4 {[%clk 0:02:49]} 51... Bf7 {[%clk 0:01:38]} 52. Nd3
{[%clk 0:02:35]} 52... Bd5 {[%clk 0:01:23]} 53. Ne5+ {[%clk 0:02:18]} 53... Kf5
{[%clk 0:01:46]} 54. Nf3 {[%clk 0:02:00]} 54... Kg4 {[%clk 0:01:58]} 55. Nd4
{[%clk 0:01:41]} 55... Bc4 {[%clk 0:02:11]} 56. Nc2 {[%clk 0:01:58]} 56... Be6
{[%clk 0:02:32]} 57. Ne3+ {[%clk 0:02:19]} 57... Kh3 {[%clk 0:02:57]} 58. Kf3
{[%clk 0:02:04]} 58... Kh2 {[%clk 0:03:04]} 59. g4 {[%clk 0:01:03]} 59... Kh3
{[%clk 0:03:26]} 60. gxh5 {[%clk 0:01:05]} 60... Kxh4 {[%clk 0:03:40]} 61. h6
{[%clk 0:01:27]} 61... Bg8 {[%clk 0:03:57]} 62. Nf5+ {[%clk 0:01:34]} 62... Kg5
{[%clk 0:03:51]} 63. Nd6 {[%clk 0:01:58]} 63... Kxh6 {[%clk 0:04:10]} 64. Nxb5
{[%clk 0:02:20]} 64... Kg6 {[%clk 0:04:31]} 65. Nc7 {[%clk 0:02:39]} 65... Kf6
{[%clk 0:04:52]} 66. Ke4 {[%clk 0:02:49]} 66... Ke7 {[%clk 0:05:09]} 67. Kd4
{[%clk 0:02:57]} 67... Kd7 {[%clk 0:05:25]} 68. Nd5 {[%clk 0:03:13]} 68... Be6
{[%clk 0:05:07]} 69. c4 {[%clk 0:03:35]} 69... Kc8 {[%clk 0:05:11]} 70. Kc5
{[%clk 0:03:50]} 70... Kb7 {[%clk 0:05:09]} 71. Kd6 {[%clk 0:04:02]} 71... Bf7
{[%clk 0:05:10]} 72. c5 {[%clk 0:04:23]} 72... Bh5 {[%clk 0:05:12]} 73. c6+
{[%clk 0:04:41]} 73... Kc8 {[%clk 0:05:31]} 74. Ne7+ {[%clk 0:04:57]} 74... Kb8
{[%clk 0:05:29]} 75. c7+ {[%clk 0:05:17]} 75... Ka7 {[%clk 0:05:55]} 76. c8=Q
{[%clk 0:05:28]} 76... Bf3 {[%clk 0:06:16]} 77. Qc7+ {[%clk 0:05:32]} 77... Ka6
{[%clk 0:06:14]} 78. Kc5 {[%clk 0:05:35]} 78... Bd5 {[%clk 0:06:25]} 79. Qb6#
{[%clk 0:05:57]} 1-0

[Variant "Standard"]
[Site "Europe Echecs"]

[Event "Championnat du monde jeunes U10"]
[Date "2024.11.19"]
[White "Makhsatuly, Rakhim"]
[Black "Mrozowski, Nikodem"]
[WhiteElo "1683"]
[BlackElo "1874"]
[Round "5.23"]
[Result "0-1"]
[TimeControl "5400+30"]

1. e4 {[%clk 1:30:59]} 1... g6 {[%clk 1:30:41]} 2. d4 {[%clk 1:31:13]} 2... d6
{[%clk 1:31:03]} 3. Nc3 {[%clk 1:30:57]} 3... Bg7 {[%clk 1:31:16]} 4. g3 {[%clk
1:31:12]} 4... Nf6 {[%clk 1:30:44]} 5. Bg2 {[%clk 1:31:35]} 5... O-O {[%clk
1:30:18]} 6. Nge2 {[%clk 1:31:31]} 6... c6 {[%clk 1:28:06]} 7. a4 {[%clk
1:31:19]} 7... Nbd7 {[%clk 1:27:40]} 8. h3 {[%clk 1:31:27]} 8... e5 {[%clk
1:27:35]} 9. Be3 {[%clk 1:30:54]} 9... Qc7 {[%clk 1:26:38]} 10. O-O {[%clk
1:29:41]} 10... h5 {[%clk 1:23:55]} 11. Re1 {[%clk 1:16:57]} 11... Re8 {[%clk
1:19:11]} 12. Qd2 {[%clk 1:13:00]} 12... Nf8 {[%clk 1:12:53]} 13. Rad1 {[%clk
1:09:30]} 13... Bd7 {[%clk 1:10:24]} 14. f4 {[%clk 1:07:39]} 14... Rad8 {[%clk
1:03:55]} 15. d5 {[%clk 0:55:34]} 15... cxd5 {[%clk 0:56:06]} 16. exd5 {[%clk
0:55:20]} 16... Bh6 {[%clk 0:54:12]} 17. fxe5 {[%clk 0:49:25]} 17... Bxe3+
{[%clk 0:54:18]} 18. Qxe3 {[%clk 0:49:47]} 18... Rxe5 {[%clk 0:53:56]} 19. Qxa7
{[%clk 0:49:57]} 19... Rde8 {[%clk 0:51:56]} 20. Qf2 {[%clk 0:49:32]} 20... N8h7
{[%clk 0:42:54]} 21. Rf1 {[%clk 0:38:48]} 21... Bxa4 {[%clk 0:34:26]} 22. Nd4
{[%clk 0:33:31]} 22... Bd7 {[%clk 0:34:27]} 23. Rd3 {[%clk 0:29:20]} 23... Qb6
{[%clk 0:32:49]} 24. Ndb5 {[%clk 0:17:34]} 24... Qxb5 {[%clk 0:23:48]} 25. Nxb5
{[%clk 0:17:21]} 25... Bxb5 {[%clk 0:24:16]} 26. Qb6 {[%clk 0:14:18]} 26... Bxd3
{[%clk 0:24:32]} 27. cxd3 {[%clk 0:14:47]} 27... Re2 {[%clk 0:19:53]} 28. Qxb7
{[%clk 0:14:23]} 28... Rd2 {[%clk 0:19:10]} 29. Be4 {[%clk 0:09:00]} 29... Kg7
{[%clk 0:15:50]} 30. h4 {[%clk 0:08:08]} 30... Nf8 {[%clk 0:15:58]} 31. Qc6
{[%clk 0:07:35]} 31... N8d7 {[%clk 0:15:35]} 32. Qc3 {[%clk 0:06:30]} 32... Re2
{[%clk 0:15:52]} 33. Rf2 {[%clk 0:06:09]} 33... Re3 {[%clk 0:15:11]} 34. Rf3
{[%clk 0:05:41]} 34... Rxf3 {[%clk 0:14:50]} 35. Bxf3 {[%clk 0:06:01]} 35... Ne5
{[%clk 0:15:05]} 36. Kf2 {[%clk 0:05:53]} 36... Kh7 {[%clk 0:14:10]} 37. Kg2
{[%clk 0:04:28]} 37... Nfg4 {[%clk 0:13:32]} 38. Be2 {[%clk 0:04:32]} 38... Ne3+
{[%clk 0:13:44]} 39. Kg1 {[%clk 0:04:47]} 39... Rb8 {[%clk 0:11:00]} 40. b4
{[%clk 0:03:46]} 40... Nxd5 {[%clk 0:11:15]} 41. Qd4 {[%clk 0:04:06]} 41... Rb5
{[%clk 0:11:22]} 42. Kf2 {[%clk 0:04:06]} 42... Kg7 {[%clk 0:11:16]} 43. Ke1
{[%clk 0:02:55]} 43... Kf6 {[%clk 0:11:33]} 44. Bf1 {[%clk 0:02:16]} 44... Ke6
{[%clk 0:11:16]} 45. Bg2 {[%clk 0:01:38]} 45... Nxb4 {[%clk 0:11:22]} 46. Kd2
{[%clk 0:01:41]} 46... Nbxd3 {[%clk 0:11:37]} 47. Qc3 {[%clk 0:01:40]} 47...
Rb2+ {[%clk 0:11:38]} 48. Ke3 {[%clk 0:02:09]} 48... Rxg2 {[%clk 0:11:36]} 49.
Qc8+ {[%clk 0:02:21]} 49... Kf6 {[%clk 0:11:51]} 50. Qd8+ {[%clk 0:02:44]} 50...
Kg7 {[%clk 0:12:10]} 51. Qxd6 {[%clk 0:02:41]} 51... Nc4+ {[%clk 0:12:28]} 0-1

[Variant "Standard"]
[Site "Europe Echecs"]

[Event "Championnat du monde jeunes U10"]
[Date "2024.11.19"]
[White "Zabelin, Platon"]
[Black "Tugsbilguun, Davganamdag"]
[WhiteElo "1870"]
[BlackElo "1660"]
[Round "5.24"]
[Result "1-0"]
[TimeControl "5400+30"]

1. d4 {[%clk 1:30:59]} 1... e6 {[%clk 1:30:54]} 2. c4 {[%clk 1:31:24]} 2... f5
{[%clk 1:31:19]} 3. Nc3 {[%clk 1:31:44]} 3... Nf6 {[%clk 1:31:38]} 4. Nf3 {[%clk
1:31:58]} 4... Bb4 {[%clk 1:32:00]} 5. Bd2 {[%clk 1:29:26]} 5... b6 {[%clk
1:30:47]} 6. g3 {[%clk 1:29:03]} 6... Bb7 {[%clk 1:29:59]} 7. Bg2 {[%clk
1:29:13]} 7... O-O {[%clk 1:29:12]} 8. O-O {[%clk 1:29:07]} 8... d6 {[%clk
1:29:03]} 9. Re1 {[%clk 1:26:46]} 9... Bxc3 {[%clk 1:24:52]} 10. bxc3 {[%clk
1:21:39]} 10... Qe7 {[%clk 1:22:26]} 11. Bc1 {[%clk 1:02:39]} 11... Nbd7 {[%clk
1:18:12]} 12. Ng5 {[%clk 1:01:17]} 12... Bxg2 {[%clk 1:16:31]} 13. Kxg2 {[%clk
1:01:37]} 13... h6 {[%clk 1:09:15]} 14. Nf3 {[%clk 1:00:01]} 14... Ne4 {[%clk
1:08:04]} 15. Qc2 {[%clk 0:57:59]} 15... c5 {[%clk 0:58:51]} 16. Nd2 {[%clk
0:53:54]} 16... Ndf6 {[%clk 0:56:20]} 17. f3 {[%clk 0:53:23]} 17... Nxd2 {[%clk
0:56:26]} 18. Bxd2 {[%clk 0:53:43]} 18... Rac8 {[%clk 0:49:54]} 19. Qd3 {[%clk
0:49:41]} 19... Rc7 {[%clk 0:39:55]} 20. d5 {[%clk 0:47:38]} 20... exd5 {[%clk
0:35:41]} 21. cxd5 {[%clk 0:47:33]} 21... c4 {[%clk 0:33:11]} 22. Qxf5 {[%clk
0:46:46]} 22... Rc5 {[%clk 0:32:19]} 23. e4 {[%clk 0:46:41]} 23... Nd7 {[%clk
0:26:39]} 24. Qe6+ {[%clk 0:37:40]} 24... Qxe6 {[%clk 0:27:02]} 25. dxe6 {[%clk
0:38:08]} 25... Ne5 {[%clk 0:26:27]} 26. f4 {[%clk 0:37:51]} 26... Nd3 {[%clk
0:26:51]} 27. Re2 {[%clk 0:37:46]} 27... g6 {[%clk 0:24:09]} 28. Rf1 {[%clk
0:37:18]} 28... Rf6 {[%clk 0:17:39]} 29. f5 {[%clk 0:37:09]} 29... Re5 {[%clk
0:17:32]} 30. g4 {[%clk 0:32:41]} 30... gxf5 {[%clk 0:15:50]} 31. gxf5 {[%clk
0:32:56]} 31... d5 {[%clk 0:16:14]} 32. Bf4 {[%clk 0:29:49]} 32... Rxe4 {[%clk
0:15:54]} 33. Rxe4 {[%clk 0:30:16]} 33... dxe4 {[%clk 0:16:19]} 34. Be3 {[%clk
0:28:55]} 1-0

[Variant "Standard"]
[Site "Europe Echecs"]

[Event "Championnat du monde jeunes U10"]
[Date "2024.11.19"]
[White "Kazimzade, Mahammad"]
[Black "Gusev, Daniil Den"]
[WhiteElo "1687"]
[BlackElo "1863"]
[Round "5.25"]
[Result "1-0"]
[TimeControl "5400+30"]

1. d4 {[%clk 1:30:57]} 1... Nf6 {[%clk 1:30:31]} 2. c4 {[%clk 1:30:48]} 2... g6
{[%clk 1:30:30]} 3. Nc3 {[%clk 1:30:28]} 3... Bg7 {[%clk 1:30:30]} 4. g3 {[%clk
1:30:18]} 4... O-O {[%clk 1:30:14]} 5. Bg2 {[%clk 1:29:54]} 5... d6 {[%clk
1:30:07]} 6. Nf3 {[%clk 1:29:13]} 6... Nbd7 {[%clk 1:29:36]} 7. O-O {[%clk
1:29:12]} 7... e5 {[%clk 1:28:45]} 8. Qc2 {[%clk 1:29:17]} 8... exd4 {[%clk
1:27:13]} 9. Nxd4 {[%clk 1:29:29]} 9... a5 {[%clk 1:25:55]} 10. Rd1 {[%clk
1:28:20]} 10... Nc5 {[%clk 1:24:54]} 11. Ndb5 {[%clk 1:26:56]} 11... Bf5 {[%clk
1:17:53]} 12. e4 {[%clk 1:25:54]} 12... Be6 {[%clk 1:13:38]} 13. e5 {[%clk
1:24:13]} 13... Bf5 {[%clk 1:12:26]} 14. Qe2 {[%clk 1:20:57]} 14... Re8 {[%clk
1:10:07]} 15. f4 {[%clk 1:14:06]} 15... Nfd7 {[%clk 0:53:48]} 16. Be3 {[%clk
1:13:10]} 16... g5 {[%clk 0:12:24]} 17. exd6 {[%clk 1:11:58]} 17... gxf4 {[%clk
0:12:22]} 18. gxf4 {[%clk 1:12:09]} 18... Re6 {[%clk 0:10:50]} 19. Nxc7 {[%clk
1:07:29]} 19... Rg6 {[%clk 0:11:02]} 20. N3d5 {[%clk 1:07:21]} 20... Bf8 {[%clk
0:06:37]} 21. Kh1 {[%clk 1:00:42]} 21... Rc8 {[%clk 0:04:04]} 22. Bxc5 {[%clk
0:59:36]} 22... Nxc5 {[%clk 0:04:25]} 23. Ne7+ {[%clk 0:59:46]} 23... Bxe7
{[%clk 0:02:51]} 24. dxe7 {[%clk 1:00:11]} 24... Qxc7 {[%clk 0:03:20]} 25. e8=Q+
{[%clk 1:00:30]} 25... Rxe8 {[%clk 0:03:44]} 26. Qxe8+ {[%clk 1:00:51]} 26...
Kg7 {[%clk 0:04:12]} 27. Rd8 {[%clk 0:57:19]} 27... Qxf4 {[%clk 0:02:52]} 28.
Qf8+ {[%clk 0:57:34]} 28... Kf6 {[%clk 0:03:03]} 29. Qxc5 {[%clk 0:57:27]} 29...
Qe4 {[%clk 0:01:27]} 30. Rd6+ {[%clk 0:57:43]} 1-0

[Variant "Standard"]
[Site "Europe Echecs"]

[Event "Championnat du monde jeunes U10"]
[Date "2024.11.19"]
[White "Wang, Rocky"]
[Black "Barsov, Mikhail"]
[WhiteElo "1853"]
[BlackElo "1668"]
[Round "5.26"]
[Result "1-0"]
[TimeControl "5400+30"]

1. e4 {[%clk 1:30:56]} 1... c6 {[%clk 1:30:56]} 2. d4 {[%clk 1:31:16]} 2... d5
{[%clk 1:31:23]} 3. e5 {[%clk 1:31:19]} 3... c5 {[%clk 1:31:48]} 4. dxc5 {[%clk
1:31:08]} 4... e6 {[%clk 1:32:12]} 5. a3 {[%clk 1:31:23]} 5... Bxc5 {[%clk
1:32:36]} 6. Nf3 {[%clk 1:31:49]} 6... Nd7 {[%clk 1:30:40]} 7. Bd3 {[%clk
1:28:29]} 7... a5 {[%clk 1:28:38]} 8. Nc3 {[%clk 1:24:16]} 8... b6 {[%clk
1:15:54]} 9. O-O {[%clk 1:20:58]} 9... Ba6 {[%clk 1:11:35]} 10. Nb5 {[%clk
1:16:57]} 10... Ne7 {[%clk 1:06:27]} 11. Bf4 {[%clk 1:04:16]} 11... Ng6 {[%clk
1:04:30]} 12. Bg3 {[%clk 1:04:33]} 12... O-O {[%clk 1:04:50]} 13. Re1 {[%clk
1:03:21]} 13... Qc8 {[%clk 0:54:42]} 14. c3 {[%clk 0:52:34]} 14... Qc6 {[%clk
0:53:51]} 15. a4 {[%clk 0:48:12]} 15... Qb7 {[%clk 0:47:42]} 16. Ng5 {[%clk
0:39:53]} 16... Be7 {[%clk 0:44:06]} 17. Qh5 {[%clk 0:34:10]} 17... Bxg5 {[%clk
0:41:17]} 18. Qxg5 {[%clk 0:34:32]} 18... Nc5 {[%clk 0:40:54]} 19. Bc2 {[%clk
0:29:30]} 19... Qd7 {[%clk 0:35:18]} 20. Nd4 {[%clk 0:25:51]} 20... Bd3 {[%clk
0:32:20]} 21. Bd1 {[%clk 0:23:22]} 21... Ne4 {[%clk 0:31:07]} 22. Qe3 {[%clk
0:23:30]} 22... Nxg3 {[%clk 0:28:03]} 23. hxg3 {[%clk 0:23:35]} 23... Bc4 {[%clk
0:26:46]} 24. Be2 {[%clk 0:21:34]} 24... Bxe2 {[%clk 0:24:25]} 25. Qxe2 {[%clk
0:21:32]} 25... Rac8 {[%clk 0:22:19]} 26. Qd3 {[%clk 0:20:44]} 26... Qc7 {[%clk
0:21:06]} 27. f4 {[%clk 0:20:50]} 27... Qc4 {[%clk 0:21:11]} 28. Qe3 {[%clk
0:20:17]} 28... Ne7 {[%clk 0:20:30]} 29. g4 {[%clk 0:16:03]} 29... Nc6 {[%clk
0:18:55]} 30. Nb5 {[%clk 0:14:34]} 30... Qc5 {[%clk 0:17:52]} 31. Kf2 {[%clk
0:13:41]} 31... Qxe3+ {[%clk 0:15:27]} 32. Kxe3 {[%clk 0:14:01]} 32... g5 {[%clk
0:15:36]} 33. g3 {[%clk 0:13:58]} 33... Kg7 {[%clk 0:14:07]} 34. Kd3 {[%clk
0:13:36]} 34... h6 {[%clk 0:14:14]} 35. Re2 {[%clk 0:12:28]} 35... Ne7 {[%clk
0:12:30]} 36. Nd6 {[%clk 0:11:43]} 36... Rc6 {[%clk 0:12:32]} 37. f5 {[%clk
0:12:02]} 37... Nc8 {[%clk 0:12:26]} 38. Nb5 Rc4 {[%clk 0:07:23]} 39. Nd4 {[%clk
0:11:44]} 39... Re8 {[%clk 0:07:30]} 40. b3 {[%clk 0:11:02]} 40... Rc7 {[%clk
0:07:27]} 41. Rf1 {[%clk 0:10:57]} 41... Kg8 {[%clk 0:06:06]} 42. fxe6 {[%clk
0:10:56]} 42... fxe6 {[%clk 0:06:23]} 43. Rf6 {[%clk 0:11:23]} 43... Rce7 {[%clk
0:05:38]} 44. Rh2 {[%clk 0:11:20]} 44... Na7 {[%clk 0:05:31]} 45. Rhxh6 {[%clk
0:11:30]} 45... Nc8 {[%clk 0:05:26]} 46. Nxe6 {[%clk 0:11:33]} 46... Na7 {[%clk
0:05:34]} 47. Rfg6+ {[%clk 0:11:52]} 47... Kf7 {[%clk 0:05:51]} 48. Rg7# 1-0

[Variant "Standard"]
[Site "Europe Echecs"]

[Event "Championnat du monde jeunes U10"]
[Date "2024.11.19"]
[White "Aitmukhanov, Arsen"]
[Black "Buklaho, Ignacy"]
[WhiteElo "1579"]
[BlackElo "1822"]
[Round "5.27"]
[Result "0-1"]
[TimeControl "5400+30"]

1. e4 {[%clk 1:30:58]} 1... c5 {[%clk 1:30:45]} 2. Nf3 {[%clk 1:31:23]} 2... e6
{[%clk 1:31:07]} 3. g3 {[%clk 1:31:50]} 3... Nc6 {[%clk 1:30:46]} 4. Bg2 {[%clk
1:32:06]} 4... d6 {[%clk 1:30:40]} 5. O-O {[%clk 1:32:22]} 5... Nf6 {[%clk
1:30:41]} 6. d3 {[%clk 1:32:44]} 6... Be7 {[%clk 1:30:41]} 7. Nbd2 {[%clk
1:32:52]} 7... O-O {[%clk 1:30:35]} 8. b3 {[%clk 1:31:31]} 8... b6 {[%clk
1:29:10]} 9. e5 {[%clk 1:30:34]} 9... Nd7 {[%clk 1:27:41]} 10. exd6 {[%clk
1:30:12]} 10... Bxd6 {[%clk 1:27:31]} 11. Nc4 {[%clk 1:28:54]} 11... Bc7 {[%clk
1:25:07]} 12. d4 {[%clk 1:27:33]} 12... Bb7 {[%clk 1:21:19]} 13. Bb2 {[%clk
1:27:05]} 13... Rb8 {[%clk 1:17:31]} 14. dxc5 {[%clk 1:23:45]} 14... Nxc5 {[%clk
1:16:02]} 15. Qe2 {[%clk 1:22:28]} 15... Qe7 {[%clk 1:13:31]} 16. Ne3 {[%clk
1:22:13]} 16... Rfe8 {[%clk 1:09:58]} 17. Nd2 {[%clk 1:19:55]} 17... Rbd8 {[%clk
1:06:13]} 18. Rfe1 {[%clk 1:18:02]} 18... Be5 {[%clk 0:56:55]} 19. Bxe5 {[%clk
1:04:28]} 19... Nxe5 {[%clk 0:57:04]} 20. Ndc4 {[%clk 1:01:03]} 20... Bxg2
{[%clk 0:56:12]} 21. Nxg2 {[%clk 1:01:16]} 21... Nc6 {[%clk 0:54:44]} 22. Nce3
{[%clk 0:58:51]} 22... Nd4 {[%clk 0:54:22]} 23. Qh5 {[%clk 0:51:41]} 23... g6
{[%clk 0:52:09]} 24. Qh6 {[%clk 0:51:36]} 24... Nf3+ {[%clk 0:50:32]} 25. Kh1
{[%clk 0:51:08]} 25... Nxe1 {[%clk 0:48:35]} 26. Rxe1 {[%clk 0:51:30]} 26... Ne4
{[%clk 0:46:16]} 27. f3 {[%clk 0:49:02]} 27... Qg5 {[%clk 0:43:27]} 28. Qxg5
{[%clk 0:46:08]} 28... Nxg5 {[%clk 0:43:25]} 29. Rf1 {[%clk 0:44:55]} 29... f5
{[%clk 0:43:32]} 30. f4 {[%clk 0:44:35]} 30... Nf7 {[%clk 0:41:34]} 31. a4
{[%clk 0:38:38]} 31... e5 {[%clk 0:41:20]} 32. Nc4 {[%clk 0:38:09]} 32... exf4
{[%clk 0:41:12]} 33. Nxf4 {[%clk 0:38:30]} 33... Ne5 {[%clk 0:39:01]} 34. Ne3
{[%clk 0:38:26]} 34... Rd2 {[%clk 0:36:38]} 35. Nfd5 {[%clk 0:35:46]} 35... Kg7
{[%clk 0:27:24]} 36. h3 {[%clk 0:34:31]} 36... Nc6 {[%clk 0:24:10]} 37. c3
{[%clk 0:28:57]} 37... Rd3 {[%clk 0:21:16]} 38. Rf3 {[%clk 0:29:20]} 38... Ne5
{[%clk 0:14:34]} 39. Rf2 {[%clk 0:29:12]} 39... Rd8 {[%clk 0:13:09]} 40. c4
{[%clk 0:26:36]} 40... Rxb3 {[%clk 0:11:23]} 41. Rc2 {[%clk 0:26:59]} 41... Rd3
{[%clk 0:08:52]} 42. Kg2 {[%clk 0:25:41]} 42... Rd4 {[%clk 0:08:50]} 43. c5
{[%clk 0:23:02]} 43... R4xd5 {[%clk 0:07:07]} 44. Nxd5 {[%clk 0:23:23]} 44...
Rxd5 {[%clk 0:07:32]} 45. cxb6 {[%clk 0:23:47]} 45... axb6 {[%clk 0:07:57]} 46.
Rb2 {[%clk 0:24:12]} 46... Ra5 {[%clk 0:07:51]} 47. Rxb6 {[%clk 0:24:36]} 47...
Rxa4 {[%clk 0:08:14]} 48. Rb7+ {[%clk 0:25:05]} 48... Kh6 {[%clk 0:08:10]} 49.
h4 {[%clk 0:25:29]} 49... Ng4 {[%clk 0:08:10]} 50. Rb2 {[%clk 0:25:54]} 50...
Ra3 {[%clk 0:08:10]} 51. Kh3 {[%clk 0:26:18]} 51... Nf6 {[%clk 0:08:29]} 52. Rf2
{[%clk 0:26:42]} 52... Ne4 {[%clk 0:08:45]} 53. Rg2 {[%clk 0:27:03]} 53... f4
{[%clk 0:09:04]} 54. Kg4 {[%clk 0:27:28]} 54... Rxg3+ {[%clk 0:09:09]} 55. Rxg3
{[%clk 0:27:52]} 55... fxg3 {[%clk 0:09:33]} 56. h5 {[%clk 0:28:17]} 56... g2
{[%clk 0:09:50]} 57. Kh3 {[%clk 0:28:44]} 57... g1=Q {[%clk 0:10:02]} 58. Kh4
{[%clk 0:29:13]} 58... g5+ {[%clk 0:10:15]} 59. Kh3 {[%clk 0:29:37]} 59... Nf2#
{[%clk 0:10:37]} 0-1

[Variant "Standard"]
[Site "Europe Echecs"]